[Event "FIDE WCCC Open-12 2024"]
[Site "Montesilvano"]
[Date "2024.11.19"]
[Round "5.48"]
[White "Anagnostopoulos, Panagiotis"]
[Black "Sharafutdinov, Timur"]
[Result "1-0"]
[ECO "A13"]
[WhiteElo "1848"]
[BlackElo "1925"]
[Annotator "RC"]
[PlyCount "141"]
[EventDate "2024.11.18"]
[EventType "swiss"]
[EventCountry "ITA"]
[SourceTitle "playchess.com"]
[Source "ChessBase"]
[SourceQuality "1"]
[TimeControl "5400+30"]

1. Nf3 {[%emt 0:00:13]} d5 {[%emt 0:00:18]} 2. g3 {[%emt 0:00:18]} Nf6 {[%emt 0:02:15]} 3. Bg2 {[%emt 0:00:48]} e6 {[%emt 0:00:48]} 4. O-O {[%emt 0:00:34]} c5 {[%emt 0:03:27]} 5. c4 {[%emt 0:01:31]} dxc4 {[%emt 0:01:42]} 6. Qa4+ {[%emt 0:02:14]} Bd7 {[%emt 0:04:14]} 7. Qxc4 {[%emt 0:00:58]} Bc6 {[%emt 0:04:32]} 8. d3 {[%emt 0:03:24]} a6 {[%emt 0:04:01]} 9. Qc2 {[%emt 0:03:15]} Be7 {[%emt 0:03:14]} 10. Nc3 {[%emt 0:03:27]} Nbd7 {[%emt 0:03:23]} 11. a4 {[%emt 0:02:42]} O-O {[%emt 0:02:49]} 12. a5 {[%emt 0:01:29]} Qc7 {[%emt 0:03:18]} 13. Bd2 {[%emt 0:03:12]} Ne5 {[%emt 0:04:29]} 14. Nxe5 {[%emt 0:04:26]} Bxg2 {[%emt 0:01:28]} 15. Kxg2 {[%emt 0:00:55]} Qxe5 {[%emt 0:00:21]} 16. Bf4 {[%emt 0:02:07]} Qh5 {[%emt 0:02:37]} 17. e4 {[%emt 0:02:00]} Ng4 {[%emt 0:03:25]} 18. h3 {[%emt 0:01:33]} Nf6 {[%emt 0:03:23]} 19. Rfd1 {[%emt 0:06:39]} Nd7 {[%emt 0:05:49]} 20. Qb3 {[%emt 0:02:26]} e5 {[%emt 0:01:27]} 21. Qxb7 {[%emt 0:01:52]} exf4 {[%emt 0:00:17]} 22. Qxd7 {[%emt 0:00:07]} f3+ {[%emt 0:01:11]} 23. Kh2 {[%emt 0:00:49]} Bf6 {[%emt 0:02:44]} 24. Rd2 {[%emt 0:05:43]} c4 {[%emt 0:02:09]} 25. Nd5 {[%emt 0:07:53]} Bg5 {[%emt 0:02:47]} 26. Rdd1 {[%emt 0:01:41]} Rab8 {[%emt 0:02:40]} 27. Rab1 {[%emt 0:04:01]} Rb5 {[%emt 0:01:28]} 28. dxc4 {[%emt 0:02:10]} Rxa5 {[%emt 0:00:53]} 29. Qf5 {[%emt 0:01:07]} g6 {[%emt 0:04:18]} 30. Qd7 {[%emt 0:02:04]} f5 {[%emt 0:07:20]} 31. Qe6+ {[%emt 0:02:13]} Kg7 {[%emt 0:04:49]} 32. Qe5+ {[%emt 0:01:36]} Kh6 {[%emt 0:01:05]} 33. Qd6 {[%emt 0:02:10]} Rd8 {[%emt 0:00:51]} 34. Qc7 {[%emt 0:01:09]} Ra4 {[%emt 0:02:01]} 35. Nf4 {[%emt 0:01:36]} Rxd1 {[%emt 0:01:45]} 36. Rxd1 {[%emt 0:00:54]} Bxf4 {[%emt 0:00:45]} 37. Qxf4+ {[%emt 0:00:11]} Qg5 {[%emt 0:00:37]} 38. exf5 {[%emt 0:01:16]} Qxf4 {[%emt 0:00:34]} 39. gxf4 {[%emt 0:00:08]} Rxc4 {[%emt 0:00:17]} 40. fxg6 {[%emt 0:01:19]} Rxf4 {[%emt 0:00:29]} 41. gxh7 {[%emt 0:00:16]} Kxh7 {[%emt 0:00:19]} 42. Rd7+ {[%emt 0:00:28]} Kg8 {[%emt 0:00:25]} 43. Kg3 {[%emt 0:00:48]} Rf6 {[%emt 0:01:04]} 44. Ra7 {[%emt 0:01:08]} Kf8 {[%emt 0:00:34]} 45. b4 {[%emt 0:00:39]} Kg8 {[%emt 0:00:18]} 46. h4 {[%emt 0:00:33]} Kf8 {[%emt 0:00:17]} 47. Rb7 {[%emt 0:00:23]} Kg8 {[%emt 0:00:25]} 48. b5 {[%emt 0:00:25]} a5 {[%emt 0:00:53]} 49. Ra7 {[%emt 0:00:18]} Rg6+ {[%emt 0:00:50]} 50. Kxf3 {[%emt 0:00:21]} Rf6+ {[%emt 0:00:08]} 51. Kg3 {[%emt 0:00:44]} Rg6+ {[%emt 0:00:28]} 52. Kh3 {[%emt 0:00:17]} Rf6 {[%emt 0:00:13]} 53. f4 {[%emt 0:01:54]} Rxf4 {[%emt 0:00:43]} 54. b6 {[%emt 0:00:20]} Rb4 {[%emt 0:00:12]} 55. b7 {[%emt 0:00:06]} Rb3+ {[%emt 0:00:22]} 56. Kg2 {[%emt 0:00:12]} Rb2+ {[%emt 0:00:25]} 57. Kf3 {[%emt 0:00:10]} Rb3+ {[%emt 0:00:21]} 58. Ke2 {[%emt 0:00:14]} Rb2+ {[%emt 0:00:23]} 59. Kd3 {[%emt 0:00:22]} Rb3+ {[%emt 0:00:36]} 60. Kc2 {[%emt 0:00:05]} Rxb7 {[%emt 0:00:15]} 61. Rxb7 {[%emt 0:00:06]} a4 {[%emt 0:01:46]} 62. Kb2 {[%emt 0:00:05]} a3+ {[%emt 0:00:13]} 63. Kxa3 {[%emt 0:00:05]} Kh8 {[%emt 0:00:24]} 64. Kb4 {[%emt 0:00:03]} Kg8 {[%emt 0:00:34]} 65. Kc5 {[%emt 0:00:02]} Kh8 {[%emt 0:00:10]} 66. Kd6 {[%emt 0:00:05]} Kg8 {[%emt 0:00:06]} 67. Ke6 {[%emt 0:00:03]} Kf8 {[%emt 0:00:32]} 68. Ra7 {[%emt 0:00:07]} Kg8 {[%emt 0:00:11]} 69. Kf6 {[%emt 0:00:06]} Kh8 {[%emt 0:00:02]} 70. Kg6 {[%emt 0:00:10]} Kg8 {[%emt 0:00:03]} 71. Ra8# {[%emt 0:00:33]} 1-0

[Event "FIDE WCCC Open-12 2024"]
[Site "Montesilvano"]
[Date "2024.11.19"]
[Round "5.49"]
[White "Kim, Derek Minwoo"]
[Black "Saminskij, Jan"]
[Result "0-1"]
[ECO "C54"]
[WhiteElo "1699"]
[BlackElo "2202"]
[Annotator "RC"]
[PlyCount "104"]
[EventDate "2024.11.18"]
[EventType "swiss"]
[EventCountry "ITA"]
[SourceTitle "playchess.com"]
[Source "ChessBase"]
[SourceQuality "1"]
[TimeControl "5400+30"]

1. e4 {[%emt 0:00:19]} e5 {[%emt 0:00:18]} 2. Nf3 {[%emt 0:00:19]} Nc6 {[%emt 0:00:08]} 3. Bc4 {[%emt 0:00:47]} Bc5 {[%emt 0:00:07]} 4. c3 {[%emt 0:00:07]} Nf6 {[%emt 0:00:05]} 5. d4 {[%emt 0:00:11]} exd4 {[%emt 0:00:06]} 6. cxd4 {[%emt 0:00:05]} Bb4+ {[%emt 0:00:11]} 7. Bd2 {[%emt 0:00:06]} Nxe4 {[%emt 0:00:28]} 8. Bxb4 {[%emt 0:00:14]} Nxb4 {[%emt 0:00:06]} 9. Bxf7+ {[%emt 0:00:13]} Kxf7 {[%emt 0:00:05]} 10. Qb3+ {[%emt 0:00:06]} Kf8 {[%emt 0:00:05]} 11. Qxb4+ {[%emt 0:00:11]} Qe7 {[%emt 0:00:07]} 12. Qxe7+ {[%emt 1:33:52]} Kxe7 {[%emt 0:00:12]} 13. O-O {[%emt 0:00:00]} Kd8 {[%emt 0:00:08]} 14. Re1 {[%emt 0:00:00]} Nf6 {[%emt 0:00:05]} 15. Ne5 {[%emt 0:00:00]} Rf8 {[%emt 0:00:07]} 16. Nc3 {[%emt 0:00:00]} d6 {[%emt 0:01:04]} 17. Nf3 {[%emt 0:00:00]} h6 {[%emt 0:01:46]} 18. Rac1 {[%emt 0:00:00]} Bd7 {[%emt 0:00:20]} 19. d5 {[%emt 0:00:00]} a5 {[%emt 0:05:05]} 20. Nd4 {[%emt 0:00:00]} a4 {[%emt 0:03:01]} 21. Ne6+ {[%emt 0:00:00]} Bxe6 {[%emt 0:00:06]} 22. dxe6 {[%emt 0:00:00]} Ke7 {[%emt 0:00:31]} 23. Ne4 {[%emt 0:05:30]} Ne8 {[%emt 0:01:13]} 24. Nc3 {[%emt 0:00:00]} c6 {[%emt 0:00:16]} 25. Re4 {[%emt 0:00:00]} b5 {[%emt 0:05:37]} 26. Ne2 {[%emt 0:00:00]} c5 {[%emt 0:01:29]} 27. Nf4 {[%emt 0:00:00]} Rf5 {[%emt 0:12:32]} 28. Rd1 {[%emt 0:00:00]} g5 {[%emt 0:01:22]} 29. Nd5+ {[%emt 0:00:00]} Rxd5 {[%emt 0:00:08]} 30. Rxd5 {[%emt 0:00:00]} Nf6 {[%emt 0:00:02]} 31. Ree5 {[%emt 0:00:00]} dxe5 {[%emt 0:00:14]} 32. Rxc5 {[%emt 0:00:00]} Rd8 {[%emt 0:00:08]} 33. g3 {[%emt 0:00:00]} Rd5 {[%emt 0:00:09]} 34. Rc7+ {[%emt 0:00:00]} Kxe6 {[%emt 0:00:07]} 35. Rc6+ {[%emt 0:00:00]} Rd6 {[%emt 0:00:37]} 36. Rc5 {[%emt 0:00:00]} Rb6 {[%emt 0:00:11]} 37. Kg2 {[%emt 0:00:00]} Kd6 {[%emt 0:00:14]} 38. Rc8 {[%emt 0:00:00]} Ke6 {[%emt 0:01:06]} 39. Rh8 {[%emt 0:00:00]} Rb7 {[%emt 0:00:08]} 40. Kf3 {[%emt 0:00:00]} Rc7 {[%emt 0:01:28]} 41. g4 {[%emt 0:00:00]} Rc2 {[%emt 0:00:52]} 42. b3 {[%emt 0:00:00]} e4+ {[%emt 0:00:06]} 43. Ke3 {[%emt 0:00:00]} Ke5 {[%emt 0:00:04]} 44. Re8+ {[%emt 0:00:00]} Nxe8 {[%emt 0:00:04]} 45. f3 {[%emt 0:00:00]} Rc3+ {[%emt 0:00:12]} 46. Kf2 {[%emt 0:00:00]} e3+ {[%emt 0:00:04]} 47. Ke2 {[%emt 0:00:00]} Kd4 {[%emt 0:00:04]} 48. h4 {[%emt 0:00:00]} Rc2+ {[%emt 0:00:05]} 49. Kd1 {[%emt 0:00:00]} Kd3 {[%emt 0:00:07]} 50. hxg5 {[%emt 0:00:00]} Rh2 {[%emt 0:00:17]} 51. Kc1 {[%emt 0:00:00]} a3 {[%emt 0:00:05]} 52. gxh6 {[%emt 0:00:00]} Rh1# {[%emt 0:00:40]} 0-1

[Event "FIDE WCCC Open-12 2024"]
[Site "Montesilvano"]
[Date "2024.11.19"]
[Round "5.50"]
[White "Sason, Noam"]
[Black "Yusupov, Rauf"]
[Result "1/2-1/2"]
[ECO "C42"]
[WhiteElo "2017"]
[BlackElo "1763"]
[Annotator "RC"]
[PlyCount "139"]
[EventDate "2024.11.18"]
[EventType "swiss"]
[EventCountry "ITA"]
[SourceTitle "playchess.com"]
[Source "ChessBase"]
[SourceQuality "1"]
[TimeControl "5400+30"]

1. e4 {[%emt 0:00:04]} e5 {[%emt 0:00:04]} 2. Nf3 {[%emt 0:00:12]} Nf6 {[%emt 0:00:04]} 3. Nxe5 {[%emt 0:00:29]} d6 {[%emt 0:00:04]} 4. Nf3 {[%emt 0:00:10]} Nxe4 {[%emt 0:00:05]} 5. Bd3 {[%emt 0:00:16]} Nf6 {[%emt 0:00:13]} 6. h3 {[%emt 0:00:17]} Be7 {[%emt 0:00:47]} 7. O-O {[%emt 0:00:27]} O-O {[%emt 0:00:39]} 8. c3 {[%emt 0:02:01]} d5 {[%emt 0:01:11]} 9. Bc2 {[%emt 0:00:33]} Bd6 {[%emt 0:08:52]} 10. d4 {[%emt 0:00:50]} Nbd7 {[%emt 0:00:53]} 11. Nh4 {[%emt 0:02:13]} Ne4 {[%emt 0:18:37]} 12. Nf5 {[%emt 0:02:22]} Ndf6 {[%emt 0:01:56]} 13. Nxd6 {[%emt 0:00:52]} Qxd6 {[%emt 0:00:08]} 14. Qf3 {[%emt 0:05:36]} Qb6 {[%emt 0:03:55]} 15. a4 {[%emt 0:01:57]} a5 {[%emt 0:08:52]} 16. g4 {[%emt 0:11:13]} Qe6 {[%emt 0:09:46]} 17. Bf4 {[%emt 0:05:05]} Ne8 {[%emt 0:08:58]} 18. Nd2 {[%emt 0:03:13]} f5 {[%emt 0:02:05]} 19. g5 {[%emt 0:00:18]} Nxd2 {[%emt 0:09:48]} 20. Bxd2 {[%emt 0:00:11]} f4 {[%emt 0:00:35]} 21. Kh2 {[%emt 0:04:11]} Qf7 {[%emt 0:03:20]} 22. Rae1 {[%emt 0:01:46]} Nd6 {[%emt 0:00:51]} 23. Bc1 {[%emt 0:09:25]} c6 {[%emt 0:04:04]} 24. Re5 {[%emt 0:02:12]} Bd7 {[%emt 0:02:37]} 25. b3 {[%emt 0:01:39]} Rae8 {[%emt 0:02:04]} 26. Ba3 {[%emt 0:01:51]} Rxe5 {[%emt 0:02:26]} 27. dxe5 {[%emt 0:02:24]} Ne4 {[%emt 0:00:07]} 28. Bxe4 {[%emt 0:05:06]} dxe4 {[%emt 0:00:01]} 29. Qxe4 {[%emt 0:00:22]} Re8 {[%emt 0:00:01]} 30. Bd6 {[%emt 0:02:26]} Qxb3 {[%emt 0:05:32]} 31. g6 {[%emt 0:02:46]} hxg6 {[%emt 0:02:38]} 32. Qxg6 {[%emt 0:01:16]} Qxc3 {[%emt 0:00:47]} 33. f3 {[%emt 0:01:13]} Re6 {[%emt 0:01:05]} 34. Qg5 {[%emt 0:01:03]} Qc2+ {[%emt 0:02:51]} 35. Qg2 {[%emt 0:01:33]} Qxg2+ {[%emt 0:00:18]} 36. Kxg2 {[%emt 0:00:04]} Rg6+ {[%emt 0:00:05]} 37. Kh2 {[%emt 0:01:34]} Rh6 {[%emt 0:00:54]} 38. Rb1 {[%emt 0:01:32]} Bxh3 {[%emt 0:00:59]} 39. Kg1 {[%emt 0:00:06]} Rg6+ {[%emt 0:00:41]} 40. Kh2 {[%emt 0:00:07]} Bc8 {[%emt 0:00:06]} 41. Bc7 {[%emt 0:00:28]} Rh6+ {[%emt 0:00:58]} 42. Kg2 {[%emt 0:00:19]} Re6 {[%emt 0:00:31]} 43. Rd1 {[%emt 0:01:08]} Kf7 {[%emt 0:00:08]} 44. Re1 {[%emt 0:02:27]} Re7 {[%emt 0:00:26]} 45. Bd8 {[%emt 0:00:22]} Re8 {[%emt 0:00:48]} 46. Bxa5 {[%emt 0:00:25]} Be6 {[%emt 0:00:17]} 47. Bc3 {[%emt 0:01:27]} Bd5 {[%emt 0:00:16]} 48. a5 {[%emt 0:00:59]} g5 {[%emt 0:00:38]} 49. Kf2 {[%emt 0:00:47]} Kg6 {[%emt 0:00:20]} 50. Bd4 {[%emt 0:01:33]} Re7 {[%emt 0:00:47]} 51. Bc5 {[%emt 0:00:56]} Re8 {[%emt 0:00:42]} 52. Bd6 {[%emt 0:01:04]} Kf5 {[%emt 0:00:12]} 53. Rh1 {[%emt 0:00:58]} Kg6 {[%emt 0:00:36]} 54. Re1 {[%emt 0:01:33]} Kf5 {[%emt 0:00:03]} 55. Rh1 {[%emt 0:00:42]} Kg6 {[%emt 0:00:01]} 56. Rb1 {[%emt 0:00:06]} Rh8 {[%emt 0:01:48]} 57. Rxb7 {[%emt 0:00:38]} Rh2+ {[%emt 0:00:01]} 58. Kg1 {[%emt 0:00:09]} Ra2 {[%emt 0:00:09]} 59. Ra7 {[%emt 0:01:00]} Kf5 {[%emt 0:01:26]} 60. a6 {[%emt 0:01:28]} Bxf3 {[%emt 0:00:27]} 61. Rf7+ {[%emt 0:00:28]} Ke6 {[%emt 0:00:19]} 62. Rf6+ {[%emt 0:01:31]} Kd5 {[%emt 0:00:07]} 63. Bb8 {[%emt 0:01:00]} Rxa6 {[%emt 0:00:14]} 64. e6 {[%emt 0:00:11]} Ra8 {[%emt 0:00:02]} 65. Bc7 {[%emt 0:01:44]} Re8 {[%emt 0:00:09]} 66. Rf5+ {[%emt 0:00:19]} Kxe6 {[%emt 0:00:05]} 67. Rxg5 {[%emt 0:00:08]} Kf6 {[%emt 0:00:59]} 68. Rc5 {[%emt 0:00:32]} Bd5 {[%emt 0:00:26]} 69. Bxf4 {[%emt 0:00:08]} Kf5 {[%emt 0:00:02]} 70. Bg3 {[%emt 0:00:33]} 1/2-1/2

[Event "FIDE WCCC Open-12 2024"]
[Site "Montesilvano"]
[Date "2024.11.19"]
[Round "5.51"]
[White "Sun, Kevin"]
[Black "Su, Jayden Chenxuan"]
[Result "1-0"]
[ECO "C45"]
[WhiteElo "1966"]
[BlackElo "1700"]
[Annotator "NA RC"]
[PlyCount "99"]
[EventDate "2024.11.18"]
[EventType "swiss"]
[EventCountry "ITA"]
[SourceTitle "playchess.com"]
[Source "ChessBase"]
[SourceQuality "1"]
[TimeControl "5400+30"]

1. e4 {[%emt 0:00:01]} e5 {[%emt 0:00:08]} 2. Nf3 {[%emt 0:00:02]} Nc6 {[%emt 0:00:12]} 3. d4 {[%emt 0:00:03]} exd4 {[%emt 0:00:20]} 4. Nxd4 {[%emt 0:00:05]} Qf6 {[%emt 0:00:18]} 5. Nf3 {[%emt 0:00:06]} Bb4+ {[%emt 0:00:48]} 6. Nbd2 {[%emt 0:00:09]} Nge7 {[%emt 0:00:33]} 7. Be2 {[%emt 0:00:12]} Qg6 {[%emt 0:00:56]} 8. c3 {[%emt 0:00:59]} Bc5 {[%emt 0:00:28]} 9. O-O {[%emt 0:00:20]} d6 {[%emt 0:00:27]} 10. Re1 {[%emt 0:03:02]} O-O {[%emt 0:00:35]} 11. b4 {[%emt 0:03:04]} Bb6 {[%emt 0:00:32]} 12. a4 {[%emt 0:01:06]} a5 {[%emt 0:00:29]} 13. b5 {[%emt 0:01:27]} Ne5 {[%emt 0:03:28]} 14. Nxe5 {[%emt 0:01:22]} dxe5 {[%emt 0:00:24]} 15. Ba3 {[%emt 0:02:48]} Bh3 {[%emt 0:07:47]} 16. Bf1 {[%emt 0:00:29]} Rfe8 {[%emt 0:03:34]} 17. Nc4 {[%emt 0:02:44]} Bg4 {[%emt 0:04:29]} 18. Nxe5 {[%emt 0:01:44]} Bxd1 {[%emt 0:05:57]} 19. Nxg6 {[%emt 0:00:29]} Nxg6 {[%emt 0:00:38]} 20. Raxd1 {[%emt 0:00:08]} Rad8 {[%emt 0:02:06]} 21. Bc4 {[%emt 0:01:54]} Ne5 {[%emt 0:01:40]} 22. Be2 {[%emt 0:02:37]} Rxd1 {[%emt 0:01:36]} 23. Rxd1 {[%emt 0:00:19]} h6 {[%emt 0:01:50]} 24. c4 {[%emt 0:01:34]} c6 {[%emt 0:04:06]} 25. c5 {[%emt 0:01:05]} Bd8 {[%emt 0:03:41]} 26. f4 {[%emt 0:02:36]} Ng6 {[%emt 0:00:45]} 27. g3 {[%emt 0:00:11]} Kh7 {[%emt 0:00:41]} 28. Bf3 {[%emt 0:00:50]} Be7 {[%emt 0:01:32]} 29. e5 {[%emt 0:00:46]} cxb5 {[%emt 0:00:28]} 30. axb5 {[%emt 0:00:16]} b6 {[%emt 0:00:17]} 31. Rd3 {[%emt 0:02:36]} Bxc5+ {[%emt 0:00:50]} 32. Bxc5 {[%emt 0:00:06]} bxc5 {[%emt 0:00:12]} 33. b6 {[%emt 0:00:08]} Rb8 {[%emt 0:00:21]} 34. b7 {[%emt 0:00:05]} a4 {[%emt 0:00:32]} 35. Ra3 {[%emt 0:00:08]} c4 {[%emt 0:00:19]} 36. Rxa4 {[%emt 0:00:06]} c3 {[%emt 0:00:06]} 37. Rc4 {[%emt 0:00:09]} h5 {[%emt 0:00:12]} 38. Rxc3 {[%emt 0:00:04]} h4 {[%emt 0:00:06]} 39. Rc8 {[%emt 0:00:03]} Rxb7 {[%emt 0:00:23]} 40. Bxb7 {[%emt 0:00:06]} hxg3 {[%emt 0:00:10]} 41. hxg3 {[%emt 0:00:03]} Ne7 {[%emt 0:00:18]} 42. Rc7 {[%emt 0:00:04]} Nf5 {[%emt 0:00:17]} 43. Be4 {[%emt 0:00:06]} Kg6 {[%emt 0:00:36]} 44. g4 {[%emt 0:00:06]} f6 {[%emt 0:00:21]} 45. Bxf5+ {[%emt 0:00:03]} Kh6 {[%emt 0:00:08]} 46. exf6 {[%emt 0:00:10]} g6 {[%emt 0:00:21]} 47. f7 {[%emt 0:00:06]} Kg7 {[%emt 0:00:13]} 48. Bxg6 {[%emt 0:00:05]} Kf8 {[%emt 0:00:06]} 49. Rc8+ {[%emt 0:00:05]} Kg7 {[%emt 0:00:08]} 50. f8=Q+ {[%emt 0:00:04]} 1-0

[Event "FIDE WCCC Open-12 2024"]
[Site "Montesilvano"]
[Date "2024.11.19"]
[Round "5.52"]
[White "Mohd Firdaus, Firast Haiqal"]
[Black "Gazzato, Nicolo`"]
[Result "1/2-1/2"]
[ECO "A16"]
[WhiteElo "1514"]
[BlackElo "1868"]
[Annotator "NA RC"]
[PlyCount "162"]
[EventDate "2024.11.18"]
[EventType "swiss"]
[EventCountry "ITA"]
[SourceTitle "playchess.com"]
[Source "ChessBase"]
[SourceQuality "1"]
[TimeControl "5400+30"]

1. Nf3 {[%emt 0:00:06]} Nf6 {[%emt 0:00:46]} 2. g3 {[%emt 0:00:57]} g6 {[%emt 0:00:10]} 3. Bg2 {[%emt 0:00:19]} Bg7 {[%emt 0:00:07]} 4. O-O {[%emt 0:00:46]} O-O {[%emt 0:00:22]} 5. c4 {[%emt 0:00:59]} d6 {[%emt 0:00:29]} 6. Nc3 {[%emt 0:00:43]} Nbd7 {[%emt 0:00:48]} 7. d3 {[%emt 0:00:45]} Re8 {[%emt 0:10:17]} 8. Bg5 {[%emt 0:01:49]} h6 {[%emt 0:06:54]} 9. Bd2 {[%emt 0:00:42]} e5 {[%emt 0:00:50]} 10. Qc2 {[%emt 0:04:26]} Nc5 {[%emt 0:01:18]} 11. b4 {[%emt 0:06:54]} Ne6 {[%emt 0:00:24]} 12. Rab1 {[%emt 0:00:55]} Nh5 {[%emt 0:07:26]} 13. a4 {[%emt 0:17:57]} f5 {[%emt 0:05:40]} 14. Nh4 {[%emt 0:06:08]} Nd4 {[%emt 0:02:45]} 15. Bd5+ {[%emt 0:02:03]} Kh7 {[%emt 0:01:46]} 16. Qd1 {[%emt 0:00:38]} Rf8 {[%emt 0:10:45]} 17. e3 {[%emt 0:07:18]} Ne6 {[%emt 0:01:25]} 18. Ne2 {[%emt 0:03:54]} c6 {[%emt 0:01:31]} 19. Bxe6 {[%emt 0:02:06]} Bxe6 {[%emt 0:01:02]} 20. f4 {[%emt 0:03:27]} Bf6 {[%emt 0:02:49]} 21. Ng2 {[%emt 0:01:26]} Qe7 {[%emt 0:07:39]} 22. Bc3 {[%emt 0:04:52]} Rad8 {[%emt 0:02:39]} 23. Qc2 {[%emt 0:01:04]} Qg7 {[%emt 0:02:31]} 24. c5 {[%emt 0:05:20]} Bd5 {[%emt 0:04:29]} 25. e4 {[%emt 0:06:51]} Be6 {[%emt 0:02:16]} 26. cxd6 {[%emt 0:02:30]} Rxd6 {[%emt 0:03:05]} 27. fxe5 {[%emt 0:00:32]} Bxe5 {[%emt 0:00:17]} 28. d4 {[%emt 0:00:43]} Bxd4+ {[%emt 0:00:52]} 29. Bxd4 {[%emt 0:00:35]} Rxd4 {[%emt 0:00:00]} 30. Nxd4 {[%emt 0:00:12]} Qxd4+ {[%emt 0:00:11]} 31. Kh1 {[%emt 0:00:23]} Rf6 {[%emt 0:05:48]} 32. Qc5 {[%emt 0:02:31]} Qxc5 {[%emt 0:00:14]} 33. bxc5 {[%emt 0:00:17]} Rf7 {[%emt 0:00:42]} 34. Nf4 {[%emt 0:00:42]} Nxf4 {[%emt 0:02:05]} 35. Rxf4 {[%emt 0:00:17]} g5 {[%emt 0:01:14]} 36. Rf2 {[%emt 0:00:38]} Kg6 {[%emt 0:01:12]} 37. Kg1 {[%emt 0:00:55]} Rd7 {[%emt 0:01:09]} 38. exf5+ {[%emt 0:00:26]} Bxf5 {[%emt 0:00:03]} 39. Rbf1 {[%emt 0:00:28]} Rd5 {[%emt 0:01:14]} 40. Rc1 {[%emt 0:00:16]} Rd7 {[%emt 0:00:56]} 41. Rb2 {[%emt 0:01:22]} Rf7 {[%emt 0:02:51]} 42. Rf2 {[%emt 0:00:20]} Rd7 {[%emt 0:00:35]} 43. Rff1 {[%emt 0:00:33]} Rd4 {[%emt 0:01:31]} 44. Rcd1 {[%emt 0:00:32]} Re4 {[%emt 0:01:22]} 45. Rd6+ {[%emt 0:00:42]} Be6 {[%emt 0:00:09]} 46. Rb1 {[%emt 0:00:46]} Kh5 {[%emt 0:00:53]} 47. Rxb7 {[%emt 0:00:39]} Bg4 {[%emt 0:00:49]} 48. Rxa7 {[%emt 0:01:26]} Re1+ {[%emt 0:00:00]} 49. Kf2 {[%emt 0:00:14]} Re2+ {[%emt 0:00:01]} 50. Kf1 {[%emt 0:00:12]} Rxh2 {[%emt 0:00:15]} 51. Rh7 {[%emt 0:00:24]} Bh3+ {[%emt 0:00:20]} 52. Kg1 {[%emt 0:00:26]} Rg2+ {[%emt 0:00:00]} 53. Kh1 {[%emt 0:15:34]} g4 {[%emt 0:03:25]} 54. Rdxh6+ {[%emt 0:00:00]} Kg5 {[%emt 0:00:03]} 55. Rh5+ {[%emt 0:00:00]} Kg6 {[%emt 0:00:00]} 56. R7h6+ {[%emt 0:00:00]} Kg7 {[%emt 0:00:01]} 57. Rxh3 {[%emt 0:00:00]} gxh3 {[%emt 0:00:00]} 58. Rxh3 {[%emt 0:00:00]} Ra2 {[%emt 0:00:01]} 59. Rh4 {[%emt 0:00:00]} Kg6 {[%emt 0:00:11]} 60. Rb4 {[%emt 0:00:00]} Kg5 {[%emt 0:00:16]} 61. Rc4 {[%emt 0:00:00]} Kf5 {[%emt 0:00:11]} 62. g4+ {[%emt 0:00:00]} Kg5 {[%emt 0:00:01]} 63. Kg1 {[%emt 0:00:00]} Kh4 {[%emt 0:00:07]} 64. Kf1 {[%emt 0:00:00]} Kg5 {[%emt 0:00:32]} 65. Ke1 {[%emt 0:00:00]} Kf6 {[%emt 0:00:22]} 66. Kd1 {[%emt 0:00:00]} Ke5 {[%emt 0:00:00]} 67. Kc1 {[%emt 0:00:00]} Kd5 {[%emt 0:00:29]} 68. Kb1 {[%emt 0:00:00]} Rg2 {[%emt 0:00:18]} 69. Rf4 {[%emt 0:00:00]} Kxc5 {[%emt 0:00:08]} 70. a5 {[%emt 0:00:00]} Kb5 {[%emt 0:00:07]} 71. Rf5+ {[%emt 0:00:00]} c5 {[%emt 0:00:23]} 72. g5 {[%emt 0:00:00]} Kxa5 {[%emt 0:00:03]} 73. Rxc5+ {[%emt 0:00:00]} Kb6 {[%emt 0:00:10]} 74. Rf5 {[%emt 0:00:00]} Kc7 {[%emt 0:00:11]} 75. Kc1 {[%emt 0:00:00]} Kd7 {[%emt 0:00:01]} 76. Kd1 {[%emt 0:00:00]} Ke6 {[%emt 0:00:16]} 77. Ra5 {[%emt 0:00:00]} Kf7 {[%emt 0:00:11]} 78. Ke1 {[%emt 0:00:00]} Kg6 {[%emt 0:00:04]} 79. Kf1 {[%emt 0:00:00]} Rg4 {[%emt 0:00:07]} 80. Kf2 {[%emt 0:00:00]} Rxg5 {[%emt 0:00:48]} 81. Rxg5+ {[%emt 0:00:00]} Kxg5 {[%emt 0:00:15]} 1/2-1/2

[Event "FIDE WCCC Open-12 2024"]
[Site "Montesilvano"]
[Date "2024.11.19"]
[Round "5.53"]
[White "Konstantinides, Savvas"]
[Black "Isakov, Amin"]
[Result "1-0"]
[ECO "B45"]
[WhiteElo "1839"]
[BlackElo "1698"]
[Annotator "NA RC"]
[PlyCount "73"]
[EventDate "2024.11.18"]
[EventType "swiss"]
[EventCountry "ITA"]
[SourceTitle "playchess.com"]
[Source "ChessBase"]
[SourceQuality "1"]
[TimeControl "5400+30"]

1. e4 {[%emt 0:00:04]} c5 {[%emt 0:00:26]} 2. Nf3 {[%emt 0:00:05]} e6 {[%emt 0:00:29]} 3. d4 {[%emt 0:00:06]} cxd4 {[%emt 0:00:08]} 4. Nxd4 {[%emt 0:00:05]} Nf6 {[%emt 0:00:14]} 5. Nc3 {[%emt 0:00:07]} Nc6 {[%emt 0:00:52]} 6. Nxc6 {[%emt 0:00:21]} bxc6 {[%emt 0:00:10]} 7. e5 {[%emt 0:00:06]} Nd5 {[%emt 0:00:05]} 8. Ne4 {[%emt 0:00:31]} Qc7 {[%emt 0:00:19]} 9. f4 {[%emt 0:00:06]} Qb6 {[%emt 0:00:15]} 10. c4 {[%emt 0:00:44]} Bb4+ {[%emt 0:00:26]} 11. Ke2 {[%emt 0:00:41]} f5 {[%emt 0:08:41]} 12. exf6 {[%emt 0:00:25]} Nxf6 {[%emt 0:00:10]} 13. Be3 {[%emt 0:00:07]} Qc7 {[%emt 0:01:08]} 14. Nxf6+ {[%emt 0:02:20]} gxf6 {[%emt 0:00:11]} 15. Kf2 {[%emt 0:01:17]} h5 {[%emt 0:07:10]} 16. Bd3 {[%emt 0:04:25]} Bd6 {[%emt 0:00:43]} 17. Qf3 {[%emt 0:01:02]} Rb8 {[%emt 0:00:36]} 18. b3 {[%emt 0:11:56]} c5 {[%emt 0:10:47]} 19. Rhe1 {[%emt 0:05:36]} Kf7 {[%emt 0:01:23]} 20. Rad1 {[%emt 0:07:45]} Be7 {[%emt 0:10:36]} 21. Bc1 {[%emt 0:03:51]} Rb6 {[%emt 0:11:21]} 22. Bb2 {[%emt 0:03:19]} Ra6 {[%emt 0:01:06]} 23. a3 {[%emt 0:00:37]} Rb6 {[%emt 0:00:12]} 24. Qe4 {[%emt 0:01:20]} Rh6 {[%emt 0:00:35]} 25. Qe3 {[%emt 0:01:15]} Rh8 {[%emt 0:03:29]} 26. Be4 {[%emt 0:05:23]} a5 {[%emt 0:01:11]} 27. a4 {[%emt 0:05:27]} Qb8 {[%emt 0:02:32]} 28. Rd3 {[%emt 0:00:36]} Re8 {[%emt 0:02:53]} 29. Qf3 {[%emt 0:01:06]} Rh8 {[%emt 0:00:43]} 30. Rde3 {[%emt 0:01:57]} Rd6 {[%emt 0:03:53]} 31. Bd5 {[%emt 0:01:32]} Bd8 {[%emt 0:04:35]} 32. f5 {[%emt 0:05:54]} Qb6 {[%emt 0:16:08]} 33. Be5 {[%emt 0:05:43]} fxe5 {[%emt 0:02:51]} 34. fxe6+ {[%emt 0:01:11]} Kg7 {[%emt 0:00:22]} 35. Qf7+ {[%emt 0:00:13]} Kh6 {[%emt 0:00:14]} 36. Rxe5 {[%emt 0:00:11]} Bg5 {[%emt 0:00:38]} 37. Rxg5 {[%emt 0:00:08]} 1-0